bitfinex-derivatives/quotes_SOLF0:USTF0_20251208
["timestamp","ask_amount","ask_price","bid_price","bid_amount"]
[1765157879490,0.05461,133.5,133.48,10.0616]
[1765157879688,3.21,133.55,133.49,3.2]
[1765157879990,3.21,133.55,133.51,3.2]
[1765157880387,6.7377,133.57,133.51,3.2]
[1765157880586,0.05258736,133.55,133.53,3.25488222]
[1765157880984,3.21,133.61,133.53,108.09138222]
[1765157881191,3.21,133.61,133.55,9.9383]
[1765157881583,111.71981322,133.64,133.56,9.9375]
[1765157881584,70.59260043,133.62,133.56,9.9375]
[1765157881882,64.84,133.62,133.56,9.9375]
[1765157882185,0.05272147,133.6,133.58,0.05707955]
[1765157882389,0.05272147,133.6,133.58,3.25707955]
[1765157882581,71.86,133.66,133.58,3.25707955]
[1765157882781,3.21,133.67,133.59,107.9895]
[1765157882988,5.74623677,133.69,133.61,3.2]
[1765157883190,3.21,133.69,133.61,3.2]
[1765157883400,9.9423,133.68,133.61,3.2]
[1765157883589,9.9423,133.68,133.63,0.04870997]
[1765157883793,0.05212169,133.66,133.63,3.24870997]
[1765157884388,0.05212169,133.66,133.65,3.2]
[1765157884981,68.05,133.71,133.65,3.2]
[1765157884982,3.21,133.71,133.65,3.2]
[1765157885188,3.21,133.74,133.65,3.2]
[1765157885396,64.82,133.73,133.65,3.2]
[1765157885599,5.72643092,133.76,133.67,3.2]
[1765157885788,107.8689,133.76,133.68,3.2]
[1765157885987,3.21,133.72,133.71,0.05229583]
[1765157886599,107.9063,133.71,133.65,3.2]
[1765157886797,3.21,133.71,133.65,3.2]
[1765157887097,9.9393,133.74,133.65,3.2]
[1765157887289,64.82,133.73,133.65,3.2]
[1765157887492,3.21,133.72,133.65,3.2]
[1765157887688,0.04842655,133.7,133.68,0.05327438]
[1765157889999,3.25842655,133.7,133.68,0.05327438]
[1765157891504,3.25842655,133.7,133.62,114.6998]
[1765157891901,3.25842655,133.7,133.63,3.2]
[1765157892197,68.05842655,133.7,133.63,3.2]
[1765157892398,68.05842655,133.7,133.65,0.04909426]
[1765157892599,3.21,133.69,133.65,0.04909426]
[1765157894601,9.9415,133.69,133.65,0.04909426]
[1765157894796,3.21,133.68,133.65,0.04909426]
[1765157895592,0.04842655,133.7,133.65,3.24909426]
[1765157896902,0.04842655,133.7,133.66,3.2]
[1765157898306,0.04842655,133.7,133.68,107.8682]
[1765157898508,3.21,133.75,133.69,3.15]
[1765157898703,64.78,133.77,133.69,3.15]
[1765157898907,67.88,133.77,133.69,3.15]
[1765157899204,3.1,133.76,133.69,3.15]
[1765157899710,0.05151098,133.74,133.71,0.05677505]
[1765157900003,3.15151098,133.74,133.71,0.05677505]
[1765157900805,0.05151098,133.74,133.71,3.20677505]
[1765157902098,64.76,133.79,133.71,107.89867505]
[1765157902399,3.1,133.79,133.73,6.7291]
[1765157902600,3.1,133.79,133.73,9.8791]
[1765157903008,3.1,133.79,133.73,3.15]
[1765157903009,9.8266,133.79,133.73,3.15]
[1765157903302,9.8266,133.79,133.75,0.05594622]
[1765157903303,0.05520316,133.77,133.75,0.05594622]
[1765157904007,0.05520316,133.77,133.75,3.20594622]
[1765157906403,3.1,133.83,133.76,3.15]
[1765157907313,0.05588309,133.81,133.78,3.20421686]
[1765157908707,0.05588309,133.81,133.79,3.15]
[1765157909405,3.1,133.89,133.8,3.15]
[1765157909608,3.1,133.89,133.82,3.15]
[1765157909807,67.84,133.92,133.82,3.15]
[1765157910011,6.7205,133.91,133.84,3.15]
[1765157910213,3.1,133.9,133.84,3.15]
[1765157910412,0.05761054,133.88,133.86,0.04864612]
[1765157910716,3.15761054,133.88,133.86,0.04864612]
[1765157911008,6.7236,133.85,133.78,67.87]
[1765157911221,9.8236,133.85,133.78,3.15]
[1765157911404,3.1,133.84,133.78,3.15]
[1765157911807,3.1,133.88,133.81,3.15]
[1765157912009,0.05087044,133.86,133.84,3.15]
[1765157912217,0.05306282,133.86,133.84,3.20617349]
[1765157913218,107.6181,133.94,133.85,3.15]
[1765157913417,3.1,133.93,133.85,3.15]
[1765157914011,3.1,133.89,133.82,3.15]
[1765157914218,0.05312292,133.87,133.84,3.20283897]
[1765157914420,3.15312292,133.87,133.84,0.05283897]
[1765157914906,0.05312292,133.87,133.84,0.05283897]
[1765157915109,0.05312292,133.87,133.84,3.20283897]
[1765157915611,6.7201,133.92,133.85,3.15]
[1765157915927,3.1,133.94,133.85,3.15]
[1765157916214,3.1,133.98,133.89,3.15]
[1765157916405,104.4815,133.99,133.89,3.15]
[1765157916406,3.1,133.97,133.89,3.15]
[1765157916823,0.04834855,133.94,133.92,3.20147498]
[1765157917008,0.0519332,133.94,133.92,3.20147498]
[1765157917314,0.0519332,133.94,133.92,0.05147498]
[1765157917315,3.1519332,133.94,133.92,0.05147498]
[1765157918617,3.1,133.93,133.85,9.8729]
[1765157919008,9.8197,133.93,133.86,3.15]
[1765157919315,3.1,133.92,133.86,3.15]
[1765157919715,0.04809222,133.9,133.88,0.05608274]
[1765157920114,0.04809222,133.9,133.88,3.20608274]
[1765157920316,0.04809222,133.9,133.88,0.05608274]
[1765157921111,0.04809222,133.9,133.88,3.20608274]
[1765157921308,0.04809222,133.9,133.88,0.05608274]
[1765157921512,3.14809222,133.9,133.88,0.05608274]
[1765157922027,0.04809222,133.9,133.88,3.20608274]
[1765157922213,3.14809222,133.9,133.88,0.05608274]
[1765157922522,3.1,133.89,133.88,0.05608274]
[1765157925606,0.04809222,133.9,133.88,0.05608274]
[1765157926123,3.14809222,133.9,133.88,0.05608274]
[1765157926616,0.04809222,133.9,133.88,3.20608274]
[1765157928023,0.04809222,133.9,133.88,0.05608274]
[1765157928721,0.04809222,133.9,133.88,3.36608274]
[1765157930426,0.04809222,133.9,133.88,10.08748274]
[1765157930716,0.04809222,133.9,133.89,3.31]
[1765157930927,6.7173,133.98,133.92,3.31]
[1765157931222,8.82240022,133.97,133.92,3.31]
[1765157931424,3.17,133.97,133.92,3.31]
[1765157931917,0.05340131,133.96,133.93,0.04805718]
[1765157932124,0.05340131,133.96,133.93,3.35805718]
[1765157933520,3.22340131,133.96,133.93,0.04805718]
[1765157933922,0.05340131,133.96,133.93,3.35805718]
[1765157934319,3.22340131,133.96,133.93,0.04805718]
[1765157934820,0.05340131,133.96,133.93,3.35805718]
[1765157935023,0.05340131,133.96,133.93,107.88015718]
[1765157935221,3.17,134.02,133.94,3.31]
[1765157936119,3.17,134.02,133.97,0.05460175]
[1765157936422,0.05140059,133.99,133.97,0.05460175]
[1765157936722,3.22140059,133.99,133.97,0.05460175]
[1765157937323,3.40140059,133.99,133.97,0.05460175]
[1765157937822,0.05140059,133.99,133.97,0.05460175]
[1765157938022,3.40140059,133.99,133.97,0.05460175]
[1765157938622,0.05140059,133.99,133.97,0.05460175]
[1765157939229,3.40140059,133.99,133.97,0.05460175]
[1765157939727,0.05140059,133.99,133.97,3.39460175]
[1765157940518,6.7131,134.06,134.0,3.34]
[1765157940728,3.35,134.08,134.0,3.34]
[1765157941126,3.35,134.11,134.02,3.34]
[1765157941327,5.59696566,134.1,134.03,3.34]
[1765157941519,0.05075637,134.08,134.06,3.34]
[1765157942123,0.05075637,134.08,134.06,10.0523]
[1765157942424,0.00075637,134.08,134.07,3.34]
[1765157944236,0.00075637,134.08,134.05,3.39277096]
[1765157944537,0.00075637,134.08,134.05,0.05277096]
[1765157944729,0.00075637,134.08,134.05,107.82167096]
[1765157944928,0.00075637,134.08,134.06,3.34]
[1765157945333,0.00075637,134.08,134.07,3.34]
[1765157948129,0.00075637,134.08,134.05,67.97277096]
[1765157948330,0.00075637,134.08,134.06,3.34]
[1765157949029,0.00075637,134.08,134.05,0.05277096]
[1765157952438,0.00075637,134.08,134.05,3.39277096]
[1765157953432,0.00075637,134.08,134.07,3.34]
[1765157955443,3.35,134.16,134.08,104.4057]
[1765157955935,3.35,134.16,134.09,3.34]
[1765157956333,0.05698225,134.14,134.11,3.39249497]
[1765157956731,0.05698225,134.14,134.11,10.10249497]
[1765157956927,3.93051776,134.21,134.14,104.3577]
[1765157957134,3.35,134.2,134.14,107.6993]
[1765157957433,3.93051776,134.21,134.17,3.34]
[1765157957635,3.93051776,134.21,134.19,3.34]
[1765157958036,3.95491973,134.21,134.19,3.39353801]
[1765157958840,305.0024,134.27,134.19,10.09953801]
[1765157959041,10.0024,134.27,134.19,10.09953801]
[1765157959343,10.0032,134.26,134.19,3.39353801]
[1765157959841,3.3,134.25,134.19,0.05353801]
[1765157961442,3.3,134.23,134.19,0.05353801]
[1765157962032,114.295,134.23,134.19,0.05353801]
[1765157962239,3.3,134.22,134.19,0.05353801]
[1765157962842,3.3,134.21,134.19,0.05353801]
[1765157963143,3.3,134.21,133.89,178.0]
[1765157963144,3.3,134.19,134.11,3.23]
[1765157963338,3.3,134.17,134.1,3.23]
[1765157963840,3.3,134.17,134.11,3.23]
[1765157964036,0.05353801,134.15,134.13,3.28550393]
[1765157964238,0.05353801,134.15,134.13,3.28385521]
[1765157964834,0.05353801,134.15,134.13,0.05385521]
[1765157965040,3.35353801,134.15,134.13,0.05385521]
[1765157966251,3.35353801,134.15,134.07,3.23]
[1765157967450,3.3,134.14,134.1,0.04993599]
[1765157970960,0.05353801,134.15,134.12,3.23]
[1765157971247,3.3,134.2,134.11,104.382]
[1765157971650,3.3,134.19,134.12,6.7097]
[1765157972144,6.7062,134.2,134.14,0.05267101]
[1765157972145,3.35331937,134.17,134.14,0.05267101]
[1765157972549,3.3,134.15,134.06,217.39811082]
[1765157972751,3.3,134.15,134.06,212.0637]
[1765157973446,3.3,134.15,134.08,107.634]
[1765157973642,0.05562413,134.13,134.1,3.2805862]
[1765157974146,0.05562413,134.13,134.11,3.23]
[1765157975157,0.05562413,134.13,134.11,9.94]
[1765157976351,0.05562413,134.13,134.12,3.23]
[1765157976549,3.3,134.19,134.13,3.23]
[1765157977256,3.3,134.19,134.09,104.3941]
[1765157977257,3.3,134.19,134.1,5.33441082]
[1765157977553,3.3,134.19,134.14,3.23]
[1765157977554,0.04715176,134.16,134.14,3.23]
[1765157978556,0.04715176,134.16,134.14,9.9386]
[1765157979246,0.04715176,134.16,134.15,3.23]
[1765157984062,0.04715176,134.16,134.13,0.04956392]
[1765157984372,0.04715176,134.16,134.13,3.27956392]
[1765157984552,0.04715176,134.16,134.15,3.23]
[1765157987157,10.10172122,134.25,134.18,3.23]
[1765157987356,5.62918164,134.24,134.18,3.23]
[1765157987561,5.62918164,134.23,134.18,3.23]
[1765157987765,3.3,134.25,134.18,3.23]
[1765157988060,8.90865143,134.24,134.2,0.05678112]
[1765157988264,3.25,134.22,134.2,0.05678112]
[1765157988658,8.8786897,134.21,134.2,0.05678112]
[1765157989067,8.87842965,134.21,134.2,0.05678112]
[1765157989363,3.25,134.21,134.2,0.05678112]
[1765157990065,3.25,134.24,134.2,3.43678112]
[1765157990455,3.25,134.24,134.2,0.05678112]
[1765157990654,3.25,134.24,134.2,6.76238112]
[1765157991064,3.25,134.27,134.2,10.14238112]
[1765157991371,3.25,134.25,134.2,6.76238112]
[1765157992068,3.25,134.25,134.21,10.0849]
[1765157992571,3.25,134.29,134.21,3.38]
[1765157992771,13.50292122,134.3,134.24,0.05073563]
[1765157992772,3.25,134.27,134.24,0.05073563]
[1765157994769,3.25,134.3,134.24,10.13433563]
[1765157995068,3.25,134.3,134.24,6.75433563]
[1765157996971,3.25,134.28,134.24,0.05073563]
[1765157997165,3.25,134.31,134.24,3.43073563]
[1765157997564,3.25,134.28,134.24,0.05073563]
[1765157997770,3.25,134.28,134.24,3.43073563]
[1765157997965,8.89133081,134.31,134.24,3.43073563]
[1765157998168,3.25,134.31,134.26,0.05696056]
[1765157998766,3.25,134.31,134.26,3.43696056]
[1765157999074,3.25,134.31,134.26,0.05696056]
[1765157999574,104.2157,134.33,134.26,0.05696056]
[1765157999575,3.25,134.29,134.26,0.05696056]
[1765158000176,9.9501,134.32,134.26,3.43696056]
[1765158000372,3.25,134.32,134.26,3.43696056]
[1765158000778,9.9502,134.32,134.26,3.43696056]
[1765158001869,3.13,134.35,134.27,104.2585]
[1765158002069,110.97872122,134.38,134.31,3.15]
[1765158002070,3.13,134.38,134.31,3.15]
[1765158002469,3.13,134.38,134.33,3.20441053]
[1765158003282,3.13,134.41,134.34,3.15]
[1765158003683,3.13,134.41,134.36,0.0475963]
[1765158003979,3.13,134.41,134.36,3.1975963]
[1765158004174,3.13,134.44,134.36,8.53200712]
[1765158004475,3.13,134.43,134.36,8.53200712]
[1765158004680,3.13,134.42,134.36,8.53200712]
[1765158004883,3.13,134.41,134.36,0.0475963]
[1765158005081,6.6945,134.43,134.36,3.1975963]
[1765158005281,3.13,134.42,134.36,3.1975963]
[1765158005671,107.2833,134.41,134.36,0.0475963]
[1765158005873,3.13,134.38,134.36,0.0475963]
[1765158006168,3.13,134.35,134.27,3.15]
[1765158006572,3.13,134.39,134.3,3.15]
[1765158006984,3.13,134.39,134.31,3.15]
[1765158007180,0.05134663,134.36,134.34,0.05745133]
[1765158007485,0.05134663,134.36,134.34,3.20745133]
[1765158008394,104.1318,134.44,134.36,3.15]
[1765158008395,6.6939,134.44,134.36,3.15]
[1765158008790,3.13,134.44,134.38,8.48441082]
[1765158008991,113.9267,134.47,134.38,8.48441082]
[1765158009298,3.13,134.44,134.41,0.05593391]
[1765158009489,3.13,134.42,134.41,0.05593391]
[1765158009792,3.13,134.42,134.35,5.33441082]
[1765158010295,9.8252,134.42,134.35,5.33441082]
[1765158010687,0.05447599,134.4,134.37,0.05335596]
[1765158010887,3.13,134.38,134.37,0.05335596]
[1765158011091,3.13,134.38,134.31,5.33441082]
[1765158011691,3.13,134.38,134.31,8.48441082]
[1765158011888,6.6975,134.37,134.31,8.48441082]
[1765158012082,3.18205507,134.35,134.33,0.05490132]
[1765158012292,107.3439,134.33,134.25,5.33441082]
[1765158012498,3.18410519,134.3,134.28,0.05273739]
[1765158013097,3.13,134.29,134.21,3.15]
[1765158013294,3.13,134.27,134.17,112.81791082]
[1765158013490,3.13,134.26,134.18,9.8566]
[1765158013692,3.13,134.25,134.18,3.15]
[1765158014092,0.05295029,134.23,134.2,0.0543428]
[1765158014304,0.05295029,134.23,134.2,3.2043428]
[1765158014499,0.05295029,134.23,134.2,0.0543428]
[1765158014698,3.18295029,134.23,134.2,0.0543428]
[1765158015695,0.05295029,134.23,134.2,0.0543428]
[1765158016698,3.18295029,134.23,134.2,0.0543428]
[1765158019300,9.88735029,134.23,134.2,0.0543428]
[1765158019602,3.27,134.22,134.2,0.0543428]
[1765158020098,3.27,134.22,134.13,107.6733]
[1765158020099,3.27,134.22,134.13,114.3825]
[1765158020303,107.595,134.19,134.09,3.31]
[1765158020503,3.27,134.17,134.09,3.31]
[1765158021302,0.05125562,134.14,134.12,0.04990402]
[1765158021498,3.32125562,134.14,134.12,0.04990402]
[1765158021895,0.05125562,134.14,134.12,0.04990402]
[1765158022102,0.05125562,134.14,134.12,3.35990402]
[1765158023009,6.7059,134.2,134.12,3.35990402]
[1765158023300,9.9759,134.2,134.12,3.31]
[1765158023506,3.27,134.2,134.13,10.0189]
[1765158023897,0.05646387,134.18,134.15,0.0547637]
[1765158024203,3.32646387,134.18,134.15,0.0547637]
[1765158025307,0.05646387,134.18,134.15,3.3647637]
[1765158027316,0.05646387,134.18,134.15,10.0727637]
[1765158027610,6.7042,134.24,134.16,3.31]
[1765158027807,9.9742,134.24,134.16,3.31]
[1765158028210,3.27,134.24,134.16,10.0175]
[1765158028410,0.05372223,134.21,134.19,0.04691799]
[1765158028912,3.32372223,134.21,134.19,0.04691799]
[1765158030415,3.32372223,134.21,134.19,3.35691799]
[1765158030416,0.05372223,134.21,134.19,3.35691799]
[1765158030712,0.05372223,134.21,134.19,0.04691799]
[1765158031211,3.32372223,134.21,134.19,0.04691799]
[1765158032112,0.05372223,134.21,134.19,3.35691799]
[1765158032312,3.27,134.25,134.2,10.0155]
[1765158032510,3.27,134.25,134.19,0.04691799]
[1765158033416,3.31716491,134.23,134.19,0.04691799]
[1765158033817,0.04716491,134.23,134.19,3.35691799]
[1765158034615,3.31716491,134.23,134.19,0.04691799]
[1765158036617,0.04716491,134.23,134.19,3.35691799]
[1765158037619,0.04716491,134.23,134.2,10.0156]
[1765158037814,0.04716491,134.23,134.21,3.31]
[1765158038220,0.04716491,134.23,134.19,3.35691799]
[1765158039013,3.31716491,134.23,134.19,0.04691799]
[1765158040021,3.31716491,134.23,134.19,3.35691799]
[1765158040022,0.04716491,134.23,134.19,3.35691799]
[1765158040717,0.04716491,134.23,134.19,10.06301799]
[1765158041217,0.04716491,134.23,134.2,3.31]
[1765158042017,0.04716491,134.23,134.19,0.04691799]
[1765158042217,3.31716491,134.23,134.19,3.35691799]
[1765158042414,0.04716491,134.23,134.19,3.35691799]
[1765158042923,3.31716491,134.23,134.19,0.04691799]
[1765158043807,3.27,134.21,134.19,0.04691799]
[1765158045328,3.31716491,134.23,134.19,3.35691799]
[1765158045521,3.31716491,134.23,134.19,0.04691799]
[1765158047615,3.27,134.22,134.19,0.04691799]
[1765158047822,3.27,134.22,134.12,107.6808]
[1765158047823,3.28,134.21,134.12,3.31]
[1765158048222,9.9865,134.19,134.12,3.31]
[1765158048417,3.28,134.18,134.12,3.31]
[1765158048722,3.28,134.18,134.09,64.66]
[1765158048932,3.28,134.15,134.14,0.05482893]
[1765158049621,3.33370193,134.16,134.14,0.05482893]
[1765158050736,0.05370193,134.16,134.14,0.05482893]
[1765158050926,0.05370193,134.16,134.14,3.38482893]
[1765158051132,0.05370193,134.16,134.14,0.05482893]
[1765158051639,0.05370193,134.16,134.14,3.38482893]
[1765158053335,0.05370193,134.16,134.14,0.05482893]
[1765158053944,3.33370193,134.16,134.14,0.05482893]
[1765158055241,0.05370193,134.16,134.14,0.05482893]
[1765158056146,3.33370193,134.16,134.14,0.05482893]
[1765158058640,3.36,134.15,134.14,0.05482893]
[1765158058849,3.36,134.14,134.07,6.712]
[1765158059050,3.36,134.13,134.05,3.39]
[1765158059844,3.40816117,134.1,134.08,0.05213552]
[1765158060243,10.11946117,134.1,134.08,0.05213552]
[1765158060440,3.36,134.09,134.08,0.05213552]
[1765158060639,3.36,134.09,134.02,3.39]
[1765158060948,3.36,134.12,134.05,10.103]
[1765158061149,5.68872793,134.11,134.05,3.39]
[1765158061354,5.68872793,134.11,134.01,104.4571]
[1765158061355,3.36,134.1,134.01,3.39]
[1765158061651,3.36,134.07,133.98,3.39]
[1765158062050,3.41460047,134.04,134.01,0.05189078]
[1765158064146,3.36,133.99,133.91,10.1102]
[1765158064851,3.36,133.99,133.92,10.1095]
[1765158065056,0.04688816,133.97,133.94,0.05426039]
[1765158066355,0.04688816,133.97,133.94,3.44426039]
[1765158067156,0.04688816,133.97,133.94,0.05426039]
[1765158067946,3.40688816,133.97,133.94,0.05426039]
[1765158069461,3.36,133.96,133.94,0.05426039]
[1765158070854,3.36,133.96,133.88,3.39]
[1765158070855,3.36,133.95,133.88,3.39]
[1765158071144,68.02,133.97,133.89,3.39]
[1765158071351,74.7378,133.97,133.89,3.39]
[1765158071555,3.36,133.96,133.89,3.39]
[1765158071756,0.05423376,133.94,133.91,0.05216204]
[1765158071951,3.41423376,133.94,133.91,0.05216204]
[1765158072952,0.05423376,133.94,133.91,0.05216204]
[1765158073152,3.41423376,133.94,133.91,0.05216204]
[1765158075457,0.05423376,133.94,133.91,3.44216204]
[1765158075651,3.41423376,133.94,133.91,0.05216204]
[1765158076158,0.05423376,133.94,133.91,3.44216204]
[1765158077063,0.05423376,133.94,133.91,0.05216204]
[1765158077264,3.41423376,133.94,133.91,0.05216204]
[1765158077560,0.05423376,133.94,133.91,3.44216204]
[1765158078150,9.9858,134.01,133.93,10.0791]
[1765158078455,74.6458,134.01,133.93,10.0791]
[1765158078857,74.6458,134.01,133.95,3.36]
[1765158078858,3.27,134.01,133.95,3.36]
[1765158079059,0.05584644,133.99,133.97,0.05635208]
[1765158079263,0.05584644,133.99,133.97,3.41635208]
[1765158080055,0.05584644,133.99,133.97,0.05635208]
[1765158080456,0.05584644,133.99,133.97,3.41635208]
[1765158080764,0.05584644,133.99,133.97,0.05635208]
[1765158080962,0.05584644,133.99,133.97,3.41635208]
[1765158081259,0.05584644,133.99,133.97,0.05635208]
[1765158081457,0.05584644,133.99,133.97,3.41635208]
[1765158083062,3.27,134.07,133.98,3.36]
[1765158083260,113.01397565,134.1,134.0,3.36]
[1765158083463,3.27,134.09,134.0,3.36]
[1765158083965,3.27,134.07,134.0,3.36]
[1765158084265,3.27,134.04,134.02,0.05603639]
[1765158085563,3.32405633,134.05,134.02,0.05603639]
[1765158085954,10.03765633,134.05,134.02,0.05603639]
[1765158086154,3.27,134.04,134.02,0.05603639]
[1765158087465,3.27,134.02,133.95,3.36]
[1765158088262,9.9851,134.02,133.95,3.36]
[1765158088469,0.05495795,134.0,133.97,3.41382049]
[1765158089865,3.32495795,134.0,133.97,0.05382049]
[1765158092071,3.27,133.99,133.92,3.36]
[1765158093069,3.32487648,133.97,133.94,0.05102689]
[1765158094068,0.05487648,133.97,133.94,0.05102689]
[1765158097075,0.05487648,133.97,133.95,3.36]
[1765158098566,0.05487648,133.97,133.95,10.0779]
[1765158098767,0.05487648,133.97,133.96,3.36]
[1765158105869,3.32487648,133.97,133.94,0.05102689]
[1765158106271,3.27,133.95,133.94,0.05102689]
[1765158106683,3.27,133.95,133.89,10.081]
[1765158106889,3.27,133.93,133.87,64.64]
[1765158107084,8.95651849,133.92,133.87,68.0]
[1765158107284,3.27,133.92,133.88,3.36]
[1765158107887,0.05583208,133.91,133.89,0.05463246]
[1765158108089,0.05583208,133.91,133.89,3.21463246]
[1765158108592,3.26583208,133.91,133.89,0.05463246]
[1765158109475,0.05583208,133.91,133.89,0.05463246]
[1765158110375,3.26583208,133.91,133.89,0.05463246]
[1765158111991,3.26583208,133.91,133.82,148.86631978]
[1765158112181,3.21,133.91,133.85,6.7231]
[1765158112592,3.21,133.91,133.85,9.8831]
[1765158113084,0.04764044,133.89,133.87,3.2082699]
[1765158114489,0.04764044,133.89,133.87,15.27894555]
[1765158114786,0.04764044,133.89,133.88,3.16]
[1765158118799,3.18,133.97,133.89,3.25]
[1765158118997,3.18,133.97,133.91,3.25]
[1765158119594,3.18,133.97,133.93,3.25]
[1765158119896,3.23567318,133.96,133.94,0.05489055]
[1765158120887,104.5127,133.95,133.87,8.59867565]
[1765158121091,3.18,133.94,133.87,3.25]
[1765158121497,3.18,133.92,133.86,6.7226]
[1765158122002,0.05296982,133.9,133.88,0.05359567]
[1765158122192,3.23296982,133.9,133.88,0.05359567]
[1765158123298,3.23296982,133.9,133.88,3.30359567]
[1765158123299,0.05296982,133.9,133.88,3.30359567]
[1765158123499,0.05296982,133.9,133.88,0.05359567]
[1765158125202,3.23296982,133.9,133.88,0.05359567]
[1765158125612,0.05296982,133.9,133.88,0.05359567]
[1765158125900,0.05296982,133.9,133.88,3.30359567]
[1765158126300,3.23296982,133.9,133.88,0.00359567]
[1765158127491,3.18,133.89,133.88,0.00359567]
[1765158128096,0.05296982,133.9,133.88,0.00359567]
[1765158128393,0.05296982,133.9,133.88,3.25359567]
[1765158128796,3.18,133.96,133.89,3.25]
[1765158128997,3.18,133.99,133.91,3.25]
[1765158129603,12.27490757,134.02,133.91,3.25]
[1765158129604,3.18,134.02,133.92,3.25]
[1765158129805,0.05626914,133.98,133.96,3.3059306]
[1765158132812,0.05626914,133.98,133.96,8.65460625]
[1765158133110,0.05626914,133.98,133.97,3.25]
[1765158133311,9.8934,134.05,133.97,3.25]
[1765158133512,3.18,134.02,133.93,3.25]
[1765158134307,0.04883898,133.99,133.96,0.05290588]
[1765158134510,3.22883898,133.99,133.96,0.05290588]
[1765158135012,3.22883898,133.99,133.91,5.34867565]
[1765158135211,3.18,133.98,133.9,67.91]
[1765158135514,3.18,133.98,133.91,3.25]
[1765158135717,3.18,133.98,133.92,3.25]
[1765158136205,0.05726933,133.96,133.94,3.30082515]
[1765158137608,3.23726933,133.96,133.94,0.05082515]
[1765158138411,3.23,133.95,133.94,0.05082515]
[1765158139111,9.9487,133.95,133.88,3.2]
[1765158139319,3.23,133.94,133.88,3.2]
[1765158139617,6.7187,133.95,133.88,3.2]
[1765158139913,3.23,134.0,133.9,3.2]
[1765158140308,0.05493594,133.96,133.94,3.25461961]
[1765158141217,0.05493594,133.96,133.94,0.05461961]
[1765158141407,3.28493594,133.96,133.94,0.05461961]
[1765158142221,3.23,133.95,133.94,0.05461961]
[1765158146419,6.7189,133.94,133.88,3.2]
[1765158146809,9.9489,133.94,133.88,3.2]
[1765158147518,0.05458969,133.92,133.9,0.04856342]
[1765158149917,104.5039,133.96,133.9,0.04856342]
[1765158149918,6.94535656,134.05,133.99,3.2]
[1765158150114,3.23,134.03,133.96,3.2]
[1765158150514,3.23,133.98,133.92,3.2]
[1765158150714,67.89,133.97,133.92,3.2]
[1765158151011,3.27931908,133.96,133.93,0.05428535]
[1765158151414,3.23,133.95,133.89,3.2]
[1765158151714,67.91,133.94,133.89,3.2]
[1765158152117,3.23,133.94,133.89,3.2]
[1765158152318,64.7,133.93,133.89,3.2]
[1765158152620,0.05324211,133.92,133.9,0.05089333]
[1765158154018,67.91,133.91,133.9,0.05089333]
[1765158154422,67.91,133.91,133.85,9.9231]
[1765158154625,3.23,133.9,133.82,9.9244]
[1765158154930,3.23,133.89,133.8,3.2]
[1765158155517,3.23,133.89,133.83,0.05139102]
[1765158155518,0.05311178,133.86,133.83,0.05139102]
[1765158155722,64.7,133.85,133.83,0.05139102]
[1765158156523,0.05311178,133.86,133.83,3.25139102]
[1765158156722,64.68,133.84,133.83,3.25139102]
[1765158157719,0.05311178,133.86,133.83,3.25139102]
[1765158157922,0.05311178,133.86,133.84,3.2]
[1765158159323,0.05311178,133.86,133.83,0.05139102]
[1765158159523,3.28311178,133.86,133.83,0.05139102]
[1765158159726,0.05311178,133.86,133.83,3.25139102]
[1765158159927,64.73311178,133.86,133.83,3.25139102]
[1765158160518,64.73311178,133.86,133.83,9.97549102]
[1765158160828,64.73311178,133.86,133.84,3.2]
[1765158161025,67.96311178,133.86,133.83,0.05139102]
[1765158161228,0.05311178,133.86,133.83,3.25139102]
[1765158161527,64.68,133.85,133.83,3.25139102]